Workbook

Sheet Kontrolle
B2: Gewinnvergleichsrechnung
B4: Anlagen | C4: A | D4: B | E4: C
B5: weitere Angaben | C5: Altanlage | D5: Neuanlage | E5: Neuanlage
B6: Anschaffungskosten | C6: 120000 | D6: 150000 | E6: 160000
B7: Nutzungsdauer in Jahren | C7: 6 | D7: 5 | E7: 5
B8: Liquidationserlös | C8: 10000 | D8: 20000 | E8: 30000
B9: ständiger Stoffvorrat (Roh-, Hilfs-, Betriebsstoffe) | C9: 4000 | D9: 4000 | E9: 4000
B10: Leistungseinheiten pro Jahr | C10: 22000 | D10: 24000 | E10: 26000
B11: Wartung | C11: 8000 | D11: 4000 | E11: 4000
B12: sonstige fixe Kosten | C12: 14000 | D12: 18000 | E12: 19000
B13: Energiekosten je Leistungseinheit | C13: 0.6 | D13: 0.5 | E13: 0.4
B14: sonstige variable Kosten je Leistungseinheit | C14: 0.4 | D14: 0.4 | E14: 0.4
B16: kalkulatorischer Zinssatz | C16: 6
B17: Materialkosten je Stück | C17: 4
B18: Stückpreise | C18: 7.2
B20: Erlöse
B21: Gesamtkosten
B22: Gesamtgewinn
B23: Stückgewinn

Sheet Berechnungen
B4: Anlagen | C4: A | D4: B | E4: C
B5: durchschnittliche Kapitalbindung | C5: =(Kontrolle!C6-Kontrolle!C8)/2 -> 55000 | D5: =(Kontrolle!D6-Kontrolle!D8)/2 -> 65000 | E5: =(Kontrolle!E6-Kontrolle!E8)/2 -> 65000
B6: ständige Kapitalbindung | C6: =Kontrolle!C8+Kontrolle!C9 -> 14000 | D6: =Kontrolle!D8+Kontrolle!D9 -> 24000 | E6: =Kontrolle!E8+Kontrolle!E9 -> 34000
B7: ERLÖSE | C7: =Kontrolle!$C$18*Kontrolle!C10 -> 158400 | D7: =Kontrolle!$C$18*Kontrolle!D10 -> 172800 | E7: =Kontrolle!$C$18*Kontrolle!E10 -> 187200
B8: Abschreibung | C8: =(Kontrolle!C6-Kontrolle!C8)/Kontrolle!C7 -> 18333.33333 | D8: =(Kontrolle!D6-Kontrolle!D8)/Kontrolle!D7 -> 26000 | E8: =(Kontrolle!E6-Kontrolle!E8)/Kontrolle!E7 -> 26000
B9: kalkulatorische Zinsen auf die durschnittliche Kapitalbindung | C9: =(C5*Kontrolle!$C$16)/100 -> 3300 | D9: =(D5*Kontrolle!$C$16)/100 -> 3900 | E9: =(E5*Kontrolle!$C$16)/100 -> 3900
B10: kalkulatorische Zinsen auf die ständige Kapitalbindung | C10: =(C6*Kontrolle!$C$16)/100 -> 840 | D10: =(D6*Kontrolle!$C$16)/100 -> 1440 | E10: =(E6*Kontrolle!$C$16)/100 -> 2040
B11: Wartung | C11: =Kontrolle!C11 -> 8000 | D11: =Kontrolle!D11 -> 4000 | E11: =Kontrolle!E11 -> 4000
B12: sonstige fixe Kosten | C12: =Kontrolle!C12 -> 14000 | D12: =Kontrolle!D12 -> 18000 | E12: =Kontrolle!E12 -> 19000
B13: fixe Kosten | C13: =ROUND(SUM(C8:C12),2) -> 44473.33 | D13: =ROUND(SUM(D8:D12),2) -> 53340 | E13: =ROUND(SUM(E8:E12),2) -> 54940
B14: Energiekosten | C14: =Kontrolle!C13*Kontrolle!C10 -> 13200 | D14: =Kontrolle!D13*Kontrolle!D10 -> 12000 | E14: =Kontrolle!E13*Kontrolle!E10 -> 10400
B15: Materialkosten | C15: =Kontrolle!$C$17*Kontrolle!C10 -> 88000 | D15: =Kontrolle!$C$17*Kontrolle!D10 -> 96000 | E15: =Kontrolle!$C$17*Kontrolle!E10 -> 104000
B16: sonstige variable Kosten | C16: =Kontrolle!C14*Kontrolle!C10 -> 8800 | D16: =Kontrolle!D14*Kontrolle!D10 -> 9600 | E16: =Kontrolle!E14*Kontrolle!E10 -> 10400
B17: variable Kosten | C17: =ROUND(SUM(C14:C16),2) -> 110000 | D17: =ROUND(SUM(D14:D16),2) -> 117600 | E17: =ROUND(SUM(E14:E16),2) -> 124800
B18: Gesamtkosten pro Jahr | C18: =ROUND(C13+C17,2) -> 154473.33 | D18: =ROUND(D13+D17,2) -> 170940 | E18: =ROUND(E13+E17,2) -> 179740
B19: GEWINN | C19: =C7-C18 -> 3926.67 | D19: =D7-D18 -> 1860 | E19: =E7-E18 -> 7460
B20: Stückgewinn | C20: =ROUND(C19/Kontrolle!C10,4) -> 0.1785 | D20: =ROUND(D19/Kontrolle!D10,4) -> 0.0775 | E20: =ROUND(E19/Kontrolle!E10,4) -> 0.2869

Sheet Tabelle3
